[Event "Titled Tuesday Blitz February 21 Early 2023"]
[White "Schut, Han"]
[Black "Wickramasinghe, Minethma Lasandi"]
[WhiteFideId "1005561"]
[BlackFideId "9966170"]
[WhiteElo "2101"]
[BlackElo "1483"]
[Result "1-0"]
[Round "06"]
[TimeControl "180+2"]
[Date "2023.02.21"]
[WhiteClock "0:02:45"]
[BlackClock "0:02:29"]

1. e4 {[%clk 0:03:00]}  c5 {[%clk 0:02:54]} 2. Nf3 {[%clk 0:03:01]}  Nc6 {[%clk 0:02:52]} 3. d4 {[%clk 0:03:01]}  cxd4 {[%clk 0:02:52]} 4. Nxd4 {[%clk 0:03:02]}  Nf6 {[%clk 0:02:52]} 5. Nc3 {[%clk 0:03:02]}  e5 {[%clk 0:02:50]} 6. Ndb5 {[%clk 0:03:03]}  d6 {[%clk 0:02:49]} 7. Nd5 {[%clk 0:03:03]}  Nxd5 {[%clk 0:02:45]} 8. exd5 {[%clk 0:03:03]}  Ne7 {[%clk 0:02:44]} 9. c3 {[%clk 0:03:03]}  a6 {[%clk 0:02:42]} 10. Qa4 {[%clk 0:03:03]}  Nxd5 {[%clk 0:02:29]} 11. Nc7+ {[%clk 0:02:45]} 1-0


[Site "https://www.chess.com"]

[Event "Titled Tuesday Blitz February 21 Early 2023"]
[White "Simonovic, Miroslav"]
[Black "Clawitter, Craig"]
[WhiteFideId "919152"]
[BlackFideId "2023105"]
[WhiteElo "2082"]
[BlackElo "2050"]
[Result "1-0"]
[Round "06"]
[TimeControl "180+2"]
[Date "2023.02.21"]
[WhiteClock "0:00:03"]
[BlackClock "0:00:01"]

1. d4 {[%clk 0:03:00]}  e6 {[%clk 0:02:51]} 2. h4 {[%clk 0:03:00]}  Nf6 {[%clk 0:02:49]} 3. Bg5 {[%clk 0:03:00]}  h6 {[%clk 0:02:48]} 4. Bxf6 {[%clk 0:03:00]}  Qxf6 {[%clk 0:02:48]} 5. e4 {[%clk 0:03:01]}  c5 {[%clk 0:02:35]} 6. Nf3 {[%clk 0:02:51]}  cxd4 {[%clk 0:02:33]} 7. Qxd4 {[%clk 0:02:52]}  Qxd4 {[%clk 0:02:25]} 8. Nxd4 {[%clk 0:02:53]}  a6 {[%clk 0:02:23]} 9. e5 {[%clk 0:02:41]}  Nc6 {[%clk 0:02:20]} 10. Nxc6 {[%clk 0:02:39]}  dxc6 {[%clk 0:02:16]} 11. Nd2 {[%clk 0:02:38]}  b6 {[%clk 0:02:10]} 12. Be2 {[%clk 0:02:28]}  Bb7 {[%clk 0:02:10]} 13. Bf3 {[%clk 0:02:28]}  O-O-O {[%clk 0:02:10]} 14. O-O-O {[%clk 0:02:27]}  c5 {[%clk 0:02:04]} 15. Ne4 {[%clk 0:02:19]}  Bxe4 {[%clk 0:01:59]} 16. Rxd8+ {[%clk 0:02:11]}  Kxd8 {[%clk 0:02:00]} 17. Bxe4 {[%clk 0:02:11]}  Be7 {[%clk 0:01:52]} 18. h5 {[%clk 0:01:56]}  Bg5+ {[%clk 0:01:47]} 19. Kb1 {[%clk 0:01:56]}  Bf4 {[%clk 0:01:47]} 20. Bb7 {[%clk 0:01:47]}  a5 {[%clk 0:01:34]} 21. Re1 {[%clk 0:01:45]}  Kc7 {[%clk 0:01:34]} 22. Ba6 {[%clk 0:01:37]}  Rd8 {[%clk 0:01:29]} 23. Bd3 {[%clk 0:01:30]}  Rd5 {[%clk 0:01:17]} 24. g3 {[%clk 0:01:14]}  Bxe5 {[%clk 0:01:06]} 25. b3 {[%clk 0:00:57]}  Bc3 {[%clk 0:00:40]} 26. Rh1 {[%clk 0:00:44]}  Re5 {[%clk 0:00:30]} 27. g4 {[%clk 0:00:36]}  Be1 {[%clk 0:00:14]} 28. f3 {[%clk 0:00:35]}  Bc3 {[%clk 0:00:13]} 29. a4 {[%clk 0:00:33]}  Re3 {[%clk 0:00:11]} 30. Rf1 {[%clk 0:00:32]}  Kd6 {[%clk 0:00:11]} 31. Kc1 {[%clk 0:00:30]}  Ke5 {[%clk 0:00:09]} 32. Kd1 {[%clk 0:00:31]}  f5 {[%clk 0:00:09]} 33. gxf5 {[%clk 0:00:16]}  exf5 {[%clk 0:00:10]} 34. Be2 {[%clk 0:00:15]}  Kf4 {[%clk 0:00:09]} 35. Rg1 {[%clk 0:00:15]}  Bf6 {[%clk 0:00:07]} 36. Kd2 {[%clk 0:00:13]}  Bc3+ {[%clk 0:00:06]} 37. Kd1 {[%clk 0:00:13]}  Bd4 {[%clk 0:00:07]} 38. Rg2 {[%clk 0:00:13]}  Bf6 {[%clk 0:00:06]} 39. Kd2 {[%clk 0:00:13]}  Bg5 {[%clk 0:00:07]} 40. Ke1 {[%clk 0:00:11]}  Bh4+ {[%clk 0:00:06]} 41. Kd2 {[%clk 0:00:11]}  Bg5 {[%clk 0:00:06]} 42. Rg1 {[%clk 0:00:09]}  Ke5 {[%clk 0:00:07]} 43. Ke1 {[%clk 0:00:09]}  Kd4 {[%clk 0:00:07]} 44. Kf2 {[%clk 0:00:09]}  Kc3 {[%clk 0:00:06]} 45. Bf1 {[%clk 0:00:07]}  Kxc2 {[%clk 0:00:06]} 46. Kg3 {[%clk 0:00:06]}  f4+ {[%clk 0:00:06]} 47. Kg4 {[%clk 0:00:06]}  Kxb3 {[%clk 0:00:06]} 48. Bb5 {[%clk 0:00:06]}  Rc3 {[%clk 0:00:05]} 49. Rb1+ {[%clk 0:00:06]}  Ka3 {[%clk 0:00:04]} 50. Rd1 {[%clk 0:00:06]}  Kb4 {[%clk 0:00:04]} 51. Rd6 {[%clk 0:00:06]}  c4 {[%clk 0:00:05]} 52. Rxb6 {[%clk 0:00:06]}  Rc1 {[%clk 0:00:04]} 53. Rb7 {[%clk 0:00:05]}  Ka3 {[%clk 0:00:04]} 54. Rc7 {[%clk 0:00:05]}  c3 {[%clk 0:00:04]} 55. Bd3 {[%clk 0:00:05]}  Kb2 {[%clk 0:00:03]} 56. Rc5 {[%clk 0:00:04]}  c2 {[%clk 0:00:03]} 57. Bxc2 {[%clk 0:00:04]}  Rxc2 {[%clk 0:00:03]} 58. Rxa5 {[%clk 0:00:05]}  Ka3 {[%clk 0:00:03]} 59. Kf5 {[%clk 0:00:05]}  Ra2 {[%clk 0:00:01]} 60. Kg6 {[%clk 0:00:05]}  Kb4 {[%clk 0:00:01]} 61. Rf5 {[%clk 0:00:03]} 1-0


[Site "https://www.chess.com"]

[Event "Titled Tuesday Blitz February 21 Early 2023"]
[White "Larrea, Manuel"]
[Black "Filgueira, Hernan"]
[WhiteFideId "3000508"]
[BlackFideId "101770"]
[WhiteElo "2323"]
[BlackElo "2283"]
[Result "0-1"]
[Round "06"]
[TimeControl "180+2"]
[Date "2023.02.21"]
[WhiteClock "0:00:58"]
[BlackClock "0:00:21"]

1. e4 {[%clk 0:02:59]}  d6 {[%clk 0:02:58]} 2. d4 {[%clk 0:02:57]}  Nf6 {[%clk 0:02:59]} 3. Nc3 {[%clk 0:02:57]}  g6 {[%clk 0:02:59]} 4. f4 {[%clk 0:02:57]}  Bg7 {[%clk 0:02:58]} 5. Nf3 {[%clk 0:02:57]}  c5 {[%clk 0:02:57]} 6. d5 {[%clk 0:02:56]}  O-O {[%clk 0:02:56]} 7. Bd3 {[%clk 0:02:55]}  e6 {[%clk 0:02:56]} 8. dxe6 {[%clk 0:02:52]}  fxe6 {[%clk 0:02:56]} 9. e5 {[%clk 0:02:52]}  Nh5 {[%clk 0:02:47]} 10. O-O {[%clk 0:02:41]}  d5 {[%clk 0:02:46]} 11. g3 {[%clk 0:02:34]}  Nc6 {[%clk 0:02:38]} 12. Nb5 {[%clk 0:02:31]}  c4 {[%clk 0:02:38]} 13. Be2 {[%clk 0:02:30]}  Qb6+ {[%clk 0:02:37]} 14. Nbd4 {[%clk 0:02:29]}  Bh6 {[%clk 0:02:32]} 15. c3 {[%clk 0:02:27]}  Ng7 {[%clk 0:02:31]} 16. Kh1 {[%clk 0:02:24]}  Nf5 {[%clk 0:02:30]} 17. Nxf5 {[%clk 0:02:15]}  gxf5 {[%clk 0:02:30]} 18. b3 {[%clk 0:02:07]}  Rd8 {[%clk 0:02:23]} 19. Qc2 {[%clk 0:01:51]}  Bd7 {[%clk 0:02:18]} 20. Rb1 {[%clk 0:01:43]}  cxb3 {[%clk 0:01:57]} 21. axb3 {[%clk 0:01:39]}  d4 {[%clk 0:01:54]} 22. cxd4 {[%clk 0:01:33]}  Nxd4 {[%clk 0:01:53]} 23. Nxd4 {[%clk 0:01:32]}  Qxd4 {[%clk 0:01:51]} 24. Bb2 {[%clk 0:01:29]}  Bc6+ {[%clk 0:01:49]} 25. Bf3 {[%clk 0:01:29]}  Bxf3+ {[%clk 0:01:28]} 26. Rxf3 {[%clk 0:01:28]}  Qb6 {[%clk 0:01:26]} 27. Qg2 {[%clk 0:01:23]}  Rac8 {[%clk 0:01:23]} 28. g4 {[%clk 0:01:21]}  fxg4 {[%clk 0:00:38]} 29. Qxg4+ {[%clk 0:01:20]}  Kh8 {[%clk 0:00:38]} 30. Rg3 {[%clk 0:01:08]}  Rg8 {[%clk 0:00:36]} 31. Qh4 {[%clk 0:01:07]}  Qc6+ {[%clk 0:00:33]} 32. Kg1 {[%clk 0:01:03]}  Rxg3+ {[%clk 0:00:22]} 33. hxg3 {[%clk 0:01:02]}  Qe4 {[%clk 0:00:22]} 34. Qf6+ {[%clk 0:00:58]}  Bg7 {[%clk 0:00:21]} 0-1


[Site "https://www.chess.com"]

[Event "Titled Tuesday Blitz February 21 Early 2023"]
[White "Nakamura, Hikaru"]
[Black "Makarian, Rudik"]
[WhiteFideId "2016192"]
[BlackFideId "44105681"]
[WhiteElo "2775"]
[BlackElo "2545"]
[Result "1-0"]
[Round "07"]
[TimeControl "180+2"]
[Date "2023.02.21"]
[WhiteClock "0:00:17"]
[BlackClock "0:00:05"]

1. Nf3 {[%clk 0:03:00]}  Nf6 {[%clk 0:03:00]} 2. g3 {[%clk 0:02:59]}  b5 {[%clk 0:03:00]} 3. Na3 {[%clk 0:02:55]}  c6 {[%clk 0:02:57]} 4. c4 {[%clk 0:02:52]}  bxc4 {[%clk 0:02:57]} 5. Nxc4 {[%clk 0:02:53]}  d5 {[%clk 0:02:56]} 6. Nce5 {[%clk 0:02:53]}  e6 {[%clk 0:02:48]} 7. Bg2 {[%clk 0:02:51]}  Bd6 {[%clk 0:02:48]} 8. d4 {[%clk 0:02:51]}  O-O {[%clk 0:02:49]} 9. O-O {[%clk 0:02:46]}  Nfd7 {[%clk 0:02:45]} 10. Qc2 {[%clk 0:02:34]}  Nxe5 {[%clk 0:02:42]} 11. dxe5 {[%clk 0:02:18]}  Be7 {[%clk 0:02:41]} 12. h4 {[%clk 0:02:17]}  h6 {[%clk 0:02:37]} 13. Be3 {[%clk 0:02:09]}  Ba6 {[%clk 0:02:35]} 14. Rfc1 {[%clk 0:02:00]}  Nd7 {[%clk 0:02:24]} 15. Nd4 {[%clk 0:01:29]}  Nxe5 {[%clk 0:02:15]} 16. Bf4 {[%clk 0:01:24]}  Bf6 {[%clk 0:02:10]} 17. Bxe5 {[%clk 0:01:08]}  Bxe5 {[%clk 0:02:11]} 18. Nxc6 {[%clk 0:01:09]}  Qd6 {[%clk 0:02:08]} 19. Nxe5 {[%clk 0:01:09]}  Qxe5 {[%clk 0:02:09]} 20. e3 {[%clk 0:01:09]}  Rab8 {[%clk 0:01:36]} 21. Qa4 {[%clk 0:01:02]}  Bd3 {[%clk 0:01:12]} 22. b3 {[%clk 0:00:55]}  Rb7 {[%clk 0:01:09]} 23. Qd4 {[%clk 0:00:51]}  Qxd4 {[%clk 0:00:57]} 24. exd4 {[%clk 0:00:52]}  a5 {[%clk 0:00:56]} 25. Rc3 {[%clk 0:00:47]}  Bf5 {[%clk 0:00:49]} 26. Bf1 {[%clk 0:00:45]}  g5 {[%clk 0:00:46]} 27. hxg5 {[%clk 0:00:41]}  hxg5 {[%clk 0:00:47]} 28. Rc5 {[%clk 0:00:42]}  Ra8 {[%clk 0:00:44]} 29. Bb5 {[%clk 0:00:36]}  Rab8 {[%clk 0:00:39]} 30. a4 {[%clk 0:00:34]}  Kg7 {[%clk 0:00:37]} 31. Kf1 {[%clk 0:00:33]}  Bg4 {[%clk 0:00:20]} 32. Ke1 {[%clk 0:00:32]}  Rh8 {[%clk 0:00:21]} 33. Kd2 {[%clk 0:00:32]}  Rh6 {[%clk 0:00:19]} 34. Ke3 {[%clk 0:00:24]}  Rf6 {[%clk 0:00:19]} 35. f4 {[%clk 0:00:22]}  gxf4+ {[%clk 0:00:17]} 36. gxf4 {[%clk 0:00:23]}  Rh6 {[%clk 0:00:18]} 37. Rg1 {[%clk 0:00:23]}  Rh3+ {[%clk 0:00:18]} 38. Kd2 {[%clk 0:00:23]}  f5 {[%clk 0:00:17]} 39. Rc3 {[%clk 0:00:22]}  Rxc3 {[%clk 0:00:15]} 40. Kxc3 {[%clk 0:00:23]}  Rc7+ {[%clk 0:00:16]} 41. Kb2 {[%clk 0:00:20]}  Kf6 {[%clk 0:00:17]} 42. b4 {[%clk 0:00:19]}  axb4 {[%clk 0:00:15]} 43. a5 {[%clk 0:00:19]}  Rb7 {[%clk 0:00:07]} 44. Bd3 {[%clk 0:00:19]}  Ra7 {[%clk 0:00:04]} 45. a6 {[%clk 0:00:19]}  Ke7 {[%clk 0:00:04]} 46. Kb3 {[%clk 0:00:19]}  Kd6 {[%clk 0:00:04]} 47. Kxb4 {[%clk 0:00:19]}  Kc6 {[%clk 0:00:05]} 48. Ka5 {[%clk 0:00:17]} 1-0


[Site "https://www.chess.com"]

[Event "Titled Tuesday Blitz February 21 Early 2023"]
[White "Svane, Rasmus"]
[Black "Kilic, Eray"]
[WhiteFideId "4657101"]
[BlackFideId "44517173"]
[WhiteElo "2623"]
[BlackElo "2414"]
[Result "1/2-1/2"]
[Round "07"]
[TimeControl "180+2"]
[Date "2023.02.21"]
[WhiteClock "0:00:09"]
[BlackClock "0:00:11"]

1. Nf3 {[%clk 0:03:00]}  Nf6 {[%clk 0:03:00]} 2. g3 {[%clk 0:03:00]}  g6 {[%clk 0:03:00]} 3. Bg2 {[%clk 0:03:00]}  Bg7 {[%clk 0:03:01]} 4. O-O {[%clk 0:03:01]}  O-O {[%clk 0:03:01]} 5. d4 {[%clk 0:03:01]}  d6 {[%clk 0:03:01]} 6. Re1 {[%clk 0:03:00]}  d5 {[%clk 0:02:59]} 7. c4 {[%clk 0:02:56]}  c6 {[%clk 0:02:58]} 8. Qb3 {[%clk 0:02:55]}  Nbd7 {[%clk 0:02:49]} 9. cxd5 {[%clk 0:02:49]}  cxd5 {[%clk 0:02:49]} 10. Nc3 {[%clk 0:02:50]}  Nb6 {[%clk 0:02:47]} 11. Bf4 {[%clk 0:02:49]}  Bd7 {[%clk 0:02:38]} 12. Rec1 {[%clk 0:02:46]}  Bc6 {[%clk 0:02:38]} 13. Ne5 {[%clk 0:02:42]}  Rc8 {[%clk 0:02:37]} 14. a4 {[%clk 0:02:41]}  Nc4 {[%clk 0:02:28]} 15. Nb5 {[%clk 0:02:23]}  Qb6 {[%clk 0:02:11]} 16. Rxc4 {[%clk 0:01:04]}  dxc4 {[%clk 0:02:12]} 17. Nxc4 {[%clk 0:01:05]}  Qa6 {[%clk 0:02:11]} 18. Ne5 {[%clk 0:00:39]}  Bxg2 {[%clk 0:02:05]} 19. Kxg2 {[%clk 0:00:40]}  e6 {[%clk 0:01:58]} 20. Nf3 {[%clk 0:00:35]}  Nd5 {[%clk 0:01:56]} 21. Bd2 {[%clk 0:00:34]}  Nc7 {[%clk 0:01:55]} 22. Nc3 {[%clk 0:00:33]}  Rfd8 {[%clk 0:01:51]} 23. Bg5 {[%clk 0:00:33]}  Rd6 {[%clk 0:01:49]} 24. Bf4 {[%clk 0:00:31]}  Rb6 {[%clk 0:01:48]} 25. Qa2 {[%clk 0:00:31]}  Nd5 {[%clk 0:01:45]} 26. Nxd5 {[%clk 0:00:30]}  exd5 {[%clk 0:01:46]} 27. Qxd5 {[%clk 0:00:26]}  Rxb2 {[%clk 0:01:45]} 28. e4 {[%clk 0:00:20]}  Qc6 {[%clk 0:01:42]} 29. Qxc6 {[%clk 0:00:19]}  Rxc6 {[%clk 0:01:43]} 30. d5 {[%clk 0:00:19]}  Rcc2 {[%clk 0:01:43]} 31. Rf1 {[%clk 0:00:17]}  Bf8 {[%clk 0:01:42]} 32. d6 {[%clk 0:00:17]}  Rc4 {[%clk 0:01:12]} 33. e5 {[%clk 0:00:16]}  Rcc2 {[%clk 0:01:05]} 34. Be3 {[%clk 0:00:16]}  b6 {[%clk 0:01:03]} 35. Rd1 {[%clk 0:00:16]}  Kg7 {[%clk 0:00:14]} 36. d7 {[%clk 0:00:15]}  Be7 {[%clk 0:00:14]} 37. d8=Q {[%clk 0:00:15]}  Bxd8 {[%clk 0:00:15]} 38. Rxd8 {[%clk 0:00:16]}  Re2 {[%clk 0:00:14]} 39. Bd4 {[%clk 0:00:15]}  Rb4 {[%clk 0:00:12]} 40. Rd7 {[%clk 0:00:09]}  Kg8 {[%clk 0:00:12]} 41. Rxa7 {[%clk 0:00:09]}  g5 {[%clk 0:00:12]} 42. g4 {[%clk 0:00:08]}  h5 {[%clk 0:00:12]} 43. h3 {[%clk 0:00:06]}  Re4 {[%clk 0:00:13]} 44. Ra8+ {[%clk 0:00:07]}  Kg7 {[%clk 0:00:12]} 45. e6+ {[%clk 0:00:07]}  f6 {[%clk 0:00:13]} 46. Ra7+ {[%clk 0:00:05]}  Kg6 {[%clk 0:00:13]} 47. Rd7 {[%clk 0:00:05]}  hxg4 {[%clk 0:00:13]} 48. hxg4 {[%clk 0:00:05]}  Rxg4+ {[%clk 0:00:13]} 49. Kf1 {[%clk 0:00:05]}  Re4 {[%clk 0:00:13]} 50. e7 {[%clk 0:00:06]}  Rb1+ {[%clk 0:00:13]} 51. Kg2 {[%clk 0:00:06]}  Kf7 {[%clk 0:00:13]} 52. Rd6 {[%clk 0:00:04]}  Kxe7 {[%clk 0:00:13]} 53. Rc6 {[%clk 0:00:04]}  g4 {[%clk 0:00:13]} 54. Bxf6+ {[%clk 0:00:04]}  Kd7 {[%clk 0:00:13]} 55. Ne5+ {[%clk 0:00:02]}  Rxe5 {[%clk 0:00:14]} 56. Rc4 {[%clk 0:00:03]}  Rf5 {[%clk 0:00:14]} 57. Bh4 {[%clk 0:00:03]}  Ra1 {[%clk 0:00:11]} 58. Rxg4 {[%clk 0:00:03]}  Ra5 {[%clk 0:00:12]} 59. Rg7+ {[%clk 0:00:04]}  Kc6 {[%clk 0:00:12]} 60. Rg6+ {[%clk 0:00:04]}  Kb7 {[%clk 0:00:12]} 61. Bd8 {[%clk 0:00:03]}  Rb1 {[%clk 0:00:13]} 62. Rg4 {[%clk 0:00:03]}  Rb2 {[%clk 0:00:12]} 63. Kg3 {[%clk 0:00:03]}  Rf5 {[%clk 0:00:13]} 64. f3 {[%clk 0:00:04]}  Rb3 {[%clk 0:00:13]} 65. Rf4 {[%clk 0:00:02]}  Rxf4 {[%clk 0:00:13]} 66. Kxf4 {[%clk 0:00:03]}  Rb4+ {[%clk 0:00:13]} 67. Kg5 {[%clk 0:00:02]}  Rxa4 {[%clk 0:00:14]} 68. f4 {[%clk 0:00:03]}  Kc6 {[%clk 0:00:15]} 69. f5 {[%clk 0:00:03]}  Rd4 {[%clk 0:00:15]} 70. Be7 {[%clk 0:00:03]}  Rd1 {[%clk 0:00:15]} 71. f6 {[%clk 0:00:03]}  Kd7 {[%clk 0:00:15]} 72. Kf5 {[%clk 0:00:03]}  Rf1+ {[%clk 0:00:15]} 73. Ke5 {[%clk 0:00:03]}  Rd1 {[%clk 0:00:12]} 74. Bb4 {[%clk 0:00:03]}  Rf1 {[%clk 0:00:05]} 75. Be7 {[%clk 0:00:03]}  b5 {[%clk 0:00:05]} 76. Kd5 {[%clk 0:00:03]}  Rf5+ {[%clk 0:00:05]} 77. Kd4 {[%clk 0:00:03]}  Ke6 {[%clk 0:00:05]} 78. Kc3 {[%clk 0:00:03]}  Rf4 {[%clk 0:00:05]} 79. Kb3 {[%clk 0:00:04]}  Kd5 {[%clk 0:00:05]} 80. Kc3 {[%clk 0:00:04]}  Kc6 {[%clk 0:00:05]} 81. Kb3 {[%clk 0:00:05]}  Kb6 {[%clk 0:00:04]} 82. Bd8+ {[%clk 0:00:05]}  Ka6 {[%clk 0:00:05]} 83. Be7 {[%clk 0:00:05]}  Kb7 {[%clk 0:00:04]} 84. Kc3 {[%clk 0:00:05]}  Kc6 {[%clk 0:00:05]} 85. Kb3 {[%clk 0:00:06]}  Rf1 {[%clk 0:00:05]} 86. Kc3 {[%clk 0:00:06]}  Rf5 {[%clk 0:00:04]} 87. Kb3 {[%clk 0:00:06]}  Rf4 {[%clk 0:00:03]} 88. Kc3 {[%clk 0:00:07]}  Kd5 {[%clk 0:00:04]} 89. Kb3 {[%clk 0:00:07]}  Ke6 {[%clk 0:00:04]} 90. Kc3 {[%clk 0:00:07]}  Kf7 {[%clk 0:00:05]} 91. Kb3 {[%clk 0:00:07]}  Rc4 {[%clk 0:00:05]} 92. Ka3 {[%clk 0:00:07]}  Ke6 {[%clk 0:00:04]} 93. Kb3 {[%clk 0:00:07]}  Re4 {[%clk 0:00:05]} 94. Kc3 {[%clk 0:00:07]}  b4+ {[%clk 0:00:05]} 95. Bxb4 {[%clk 0:00:07]}  Kxf6 {[%clk 0:00:05]} 96. Kb3 {[%clk 0:00:06]}  Ke6 {[%clk 0:00:06]} 97. Kc3 {[%clk 0:00:05]}  Kd5 {[%clk 0:00:07]} 98. Bf8 {[%clk 0:00:05]}  Rc4+ {[%clk 0:00:06]} 99. Kd3 {[%clk 0:00:06]}  Rf4 {[%clk 0:00:07]} 100. Bg7 {[%clk 0:00:05]}  Rf3+ {[%clk 0:00:07]} 101. Ke2 {[%clk 0:00:05]}  Ke4 {[%clk 0:00:08]} 102. Bh6 {[%clk 0:00:05]}  Rh3 {[%clk 0:00:08]} 103. Bg5 {[%clk 0:00:05]}  Rh2+ {[%clk 0:00:08]} 104. Kd1 {[%clk 0:00:05]}  Kd3 {[%clk 0:00:08]} 105. Ke1 {[%clk 0:00:05]}  Rg2 {[%clk 0:00:09]} 106. Bh6 {[%clk 0:00:05]}  Rg6 {[%clk 0:00:09]} 107. Bf4 {[%clk 0:00:05]}  Re6+ {[%clk 0:00:09]} 108. Kf2 {[%clk 0:00:05]}  Rf6 {[%clk 0:00:09]} 109. Kf3 {[%clk 0:00:04]}  Rf7 {[%clk 0:00:09]} 110. Kg3 {[%clk 0:00:04]}  Ke4 {[%clk 0:00:09]} 111. Bd6 {[%clk 0:00:05]}  Rf3+ {[%clk 0:00:09]} 112. Kg2 {[%clk 0:00:05]}  Rf6 {[%clk 0:00:09]} 113. Bh2 {[%clk 0:00:05]}  Ke3 {[%clk 0:00:09]} 114. Kh1 {[%clk 0:00:06]}  Kf2 {[%clk 0:00:08]} 115. Bg1+ {[%clk 0:00:06]}  Kf3 {[%clk 0:00:09]} 116. Bh2 {[%clk 0:00:07]}  Re6 {[%clk 0:00:09]} 117. Bg1 {[%clk 0:00:08]}  Re2 {[%clk 0:00:10]} 118. Bh2 {[%clk 0:00:08]}  Kf2 {[%clk 0:00:10]} 119. Bg1+ {[%clk 0:00:08]}  Kf1 {[%clk 0:00:11]} 120. Bh2 {[%clk 0:00:08]}  Rg2 {[%clk 0:00:11]} 121. Bc7 {[%clk 0:00:08]}  Rg7 {[%clk 0:00:12]} 122. Bh2 {[%clk 0:00:08]}  Kf2 {[%clk 0:00:12]} 123. Bd6 {[%clk 0:00:08]}  Kf3 {[%clk 0:00:12]} 124. Bh2 {[%clk 0:00:08]}  Kg4 {[%clk 0:00:12]} 125. Bd6 {[%clk 0:00:08]}  Kh3 {[%clk 0:00:13]} 126. Bh2 {[%clk 0:00:08]}  Rg2 {[%clk 0:00:13]} 127. Bg1 {[%clk 0:00:08]}  Rc2 {[%clk 0:00:13]} 128. Bb6 {[%clk 0:00:08]}  Kg3 {[%clk 0:00:14]} 129. Bg1 {[%clk 0:00:08]}  Kf3 {[%clk 0:00:14]} 130. Bb6 {[%clk 0:00:09]}  Rc1+ {[%clk 0:00:15]} 131. Kh2 {[%clk 0:00:09]}  Rb1 {[%clk 0:00:14]} 132. Ba7 {[%clk 0:00:08]}  Rb7 {[%clk 0:00:13]} 133. Bc5 {[%clk 0:00:09]}  Rh7+ {[%clk 0:00:13]} 134. Kg1 {[%clk 0:00:09]}  Rh5 {[%clk 0:00:14]} 135. Bb6 {[%clk 0:00:09]}  Rb5 {[%clk 0:00:13]} 136. Ba7 {[%clk 0:00:09]}  Kg3 {[%clk 0:00:13]} 137. Kh1 {[%clk 0:00:09]}  Rh5+ {[%clk 0:00:11]} 138. Kg1 {[%clk 0:00:09]}  Rh7 {[%clk 0:00:12]} 139. Bf2+ {[%clk 0:00:08]}  Kf3 {[%clk 0:00:12]} 140. Bb6 {[%clk 0:00:09]}  Rb7 {[%clk 0:00:12]} 141. Bc5 {[%clk 0:00:10]}  Rg7+ {[%clk 0:00:12]} 142. Kh1 {[%clk 0:00:09]}  Rh7+ {[%clk 0:00:11]} 143. Kg1 {[%clk 0:00:10]}  Rc7 {[%clk 0:00:11]} 144. Bb6 {[%clk 0:00:09]}  Rc1+ {[%clk 0:00:11]} 145. Kh2 {[%clk 0:00:09]}  Ke2 {[%clk 0:00:11]} 1/2-1/2


[Site "https://www.chess.com"]

[Event "Titled Tuesday Blitz February 21 Early 2023"]
[White "Chigaev, Maksim"]
[Black "Sarana, Alexey"]
[WhiteFideId "4108116"]
[BlackFideId "24133795"]
[WhiteElo "2628"]
[BlackElo "2685"]
[Result "1/2-1/2"]
[Round "07"]
[TimeControl "180+2"]
[Date "2023.02.21"]
[WhiteClock "0:00:07"]
[BlackClock "0:00:05"]

1. Nf3 {[%clk 0:03:00]}  d5 {[%clk 0:02:54]} 2. d4 {[%clk 0:03:00]}  Nf6 {[%clk 0:02:54]} 3. c4 {[%clk 0:03:00]}  e6 {[%clk 0:02:54]} 4. g3 {[%clk 0:03:00]}  Bb4+ {[%clk 0:02:54]} 5. Nc3 {[%clk 0:02:56]}  dxc4 {[%clk 0:02:51]} 6. Bg2 {[%clk 0:02:57]}  O-O {[%clk 0:02:51]} 7. O-O {[%clk 0:02:56]}  Nc6 {[%clk 0:02:50]} 8. Re1 {[%clk 0:02:57]}  Bd6 {[%clk 0:02:46]} 9. Bg5 {[%clk 0:02:38]}  h6 {[%clk 0:02:39]} 10. Bxf6 {[%clk 0:02:38]}  Qxf6 {[%clk 0:02:40]} 11. e3 {[%clk 0:02:38]}  e5 {[%clk 0:02:36]} 12. d5 {[%clk 0:02:36]}  Na5 {[%clk 0:02:13]} 13. Qa4 {[%clk 0:02:15]}  b6 {[%clk 0:02:11]} 14. Ne4 {[%clk 0:01:37]}  Qe7 {[%clk 0:02:10]} 15. Nxd6 {[%clk 0:01:12]}  cxd6 {[%clk 0:02:11]} 16. Nd2 {[%clk 0:01:11]}  Bd7 {[%clk 0:02:06]} 17. Qa3 {[%clk 0:01:07]}  f5 {[%clk 0:01:59]} 18. b4 {[%clk 0:01:06]}  cxb3 {[%clk 0:01:55]} 19. axb3 {[%clk 0:01:06]}  Bb5 {[%clk 0:01:49]} 20. Rac1 {[%clk 0:01:03]}  Rac8 {[%clk 0:01:32]} 21. h4 {[%clk 0:01:03]}  e4 {[%clk 0:01:19]} 22. h5 {[%clk 0:00:53]}  Bd3 {[%clk 0:00:46]} 23. Bh3 {[%clk 0:00:45]}  Rc5 {[%clk 0:00:39]} 24. Qa4 {[%clk 0:00:18]}  Rxd5 {[%clk 0:00:22]} 25. b4 {[%clk 0:00:18]}  Nb7 {[%clk 0:00:18]} 26. Qxa7 {[%clk 0:00:15]}  Rb5 {[%clk 0:00:18]} 27. Nc4 {[%clk 0:00:09]}  Rxb4 {[%clk 0:00:14]} 28. Nxb6 {[%clk 0:00:08]}  Rb2 {[%clk 0:00:14]} 29. Nd5 {[%clk 0:00:08]}  Qf7 {[%clk 0:00:08]} 30. Qa1 {[%clk 0:00:04]}  Qxd5 {[%clk 0:00:02]} 31. Qxb2 {[%clk 0:00:04]}  Nc5 {[%clk 0:00:03]} 32. Qd4 {[%clk 0:00:02]}  Qe6 {[%clk 0:00:03]} 33. Ra1 {[%clk 0:00:01]}  Qf7 {[%clk 0:00:02]} 34. Ra3 {[%clk 0:00:01]}  Qxh5 {[%clk 0:00:03]} 35. Bf1 {[%clk 0:00:02]}  Kh7 {[%clk 0:00:03]} 36. Qxd6 {[%clk 0:00:02]}  Rc8 {[%clk 0:00:03]} 37. Rc3 {[%clk 0:00:01]}  Bxf1 {[%clk 0:00:03]} 38. Rxf1 {[%clk 0:00:01]}  Nb7 {[%clk 0:00:03]} 39. Qd4 {[%clk 0:00:01]}  Rxc3 {[%clk 0:00:03]} 40. Qxc3 {[%clk 0:00:02]}  Nd6 {[%clk 0:00:03]} 41. Qe5 {[%clk 0:00:02]}  Nf7 {[%clk 0:00:04]} 42. Qf4 {[%clk 0:00:02]}  Qg6 {[%clk 0:00:03]} 43. Kg2 {[%clk 0:00:02]}  Ng5 {[%clk 0:00:04]} 44. Rd1 {[%clk 0:00:02]}  Qf7 {[%clk 0:00:04]} 45. Rc1 {[%clk 0:00:01]}  Nf3 {[%clk 0:00:04]} 46. Rc5 {[%clk 0:00:02]}  Kg6 {[%clk 0:00:02]} 47. Rc6+ {[%clk 0:00:02]}  Kh7 {[%clk 0:00:03]} 48. Rc5 {[%clk 0:00:03]}  Kg6 {[%clk 0:00:03]} 49. Qd6+ {[%clk 0:00:03]}  Kh7 {[%clk 0:00:04]} 50. Qd5 {[%clk 0:00:04]}  Qxd5 {[%clk 0:00:02]} 51. Rxd5 {[%clk 0:00:05]}  Kg6 {[%clk 0:00:02]} 52. Rd7 {[%clk 0:00:05]}  Kf6 {[%clk 0:00:03]} 53. Ra7 {[%clk 0:00:05]}  g6 {[%clk 0:00:03]} 54. Ra6+ {[%clk 0:00:05]}  Kg5 {[%clk 0:00:04]} 55. Ra7 {[%clk 0:00:04]}  h5 {[%clk 0:00:04]} 56. Rb7 {[%clk 0:00:05]}  Kg4 {[%clk 0:00:03]} 57. Rg7 {[%clk 0:00:04]}  g5 {[%clk 0:00:04]} 58. Rg8 {[%clk 0:00:05]}  Ne1+ {[%clk 0:00:03]} 59. Kf1 {[%clk 0:00:05]}  Nf3 {[%clk 0:00:04]} 60. Kg2 {[%clk 0:00:06]}  Ne1+ {[%clk 0:00:04]} 61. Kf1 {[%clk 0:00:06]}  Nf3 {[%clk 0:00:05]} 62. Kg2 {[%clk 0:00:07]} 1/2-1/2


[Site "https://www.chess.com"]